bitfinex-derivatives/quotes_BTCF0:USTF0_20260119
["timestamp","ask_amount","ask_price","bid_price","bid_amount"]
[1768781437434,0.010785,92749.0,92736.0,0.1077923]
[1768781437747,0.00013399,92757.0,92729.0,0.05763892]
[1768781437748,0.09421396,92756.0,92729.0,0.05763892]
[1768781437947,0.010786,92738.0,92714.0,0.111687]
[1768781438151,0.010786,92738.0,92726.0,0.10782078]
[1768781438348,0.00016173,92735.0,92714.0,0.111687]
[1768781438655,0.00016173,92735.0,92715.0,0.10783763]
[1768781438948,0.10987311,92757.0,92724.0,0.0985049]
[1768781438949,0.010786,92742.0,92724.0,0.0985049]
[1768781439146,0.00013399,92757.0,92723.0,0.0985049]
[1768781439346,0.00013399,92757.0,92714.0,0.07720969]
[1768781439347,0.010783,92768.0,92737.0,0.111687]
[1768781439542,0.010785,92753.0,92727.0,0.0985049]
[1768781439738,0.010783,92765.0,92738.0,0.10782833]
[1768781439951,0.09421396,92766.0,92739.0,0.010786]
[1768781440151,0.16499696,92766.0,92736.0,0.0985049]
[1768781440346,0.06,92766.0,92737.0,0.0985049]
[1768781440754,0.09421396,92776.0,92743.0,0.0985049]
[1768781441044,0.09421396,92768.0,92750.0,0.00016173]
[1768781441250,0.09421396,92767.0,92750.0,0.00016173]
[1768781441451,0.00016173,92769.0,92750.0,0.00016173]
[1768781443057,0.00016173,92769.0,92750.0,0.00216173]
[1768781443446,0.09421396,92768.0,92750.0,0.00216173]
[1768781443744,0.09421396,92768.0,92750.0,0.00016173]
[1768781444747,0.00016173,92769.0,92750.0,0.00016173]
[1768781445347,0.09421396,92788.0,92759.0,0.13520253]
[1768781445659,0.09421396,92788.0,92755.0,0.010784]
[1768781445854,0.09421396,92787.0,92747.0,0.010785]
[1768781446054,0.09421396,92778.0,92737.0,0.07720969]
[1768781446252,0.09421396,92777.0,92737.0,0.07720969]
[1768781446455,0.09421396,92769.0,92740.0,0.10780566]
[1768781446658,0.09421396,92765.0,92748.0,0.00016173]
[1768781447156,0.09421396,92759.0,92748.0,0.00016173]
[1768781447455,0.12441853,92760.0,92730.0,0.07720969]
[1768781447661,0.00016173,92766.0,92732.0,0.0985049]
[1768781447857,0.00016173,92766.0,92733.0,0.0985049]
[1768781448059,0.00016173,92766.0,92738.0,0.010786]
[1768781448365,0.00016173,92766.0,92749.0,0.010785]
[1768781448554,0.09421396,92790.0,92757.0,0.010784]
[1768781448754,0.09421396,92779.0,92743.0,0.0985049]
[1768781449064,0.21863249,92760.0,92742.0,0.11824361]
[1768781449361,0.12441853,92780.0,92745.0,0.0985049]
[1768781449559,0.09421396,92779.0,92745.0,0.0985049]
[1768781449750,0.09421396,92779.0,92753.0,0.00016173]
[1768781449751,0.21863249,92770.0,92753.0,0.00016173]
[1768781449952,0.21863249,92770.0,92739.0,0.010786]
[1768781450160,0.09421396,92769.0,92736.0,0.10781554]
[1768781450358,0.09421396,92769.0,92737.0,0.0985049]
[1768781450759,0.09421396,92769.0,92739.0,0.0985049]
[1768781450958,0.09421396,92769.0,92743.0,0.010786]
[1768781451354,0.09421396,92769.0,92747.0,0.00016173]
[1768781452259,0.09421396,92769.0,92731.0,0.111687]
[1768781452260,0.09421396,92768.0,92730.0,0.07720969]
[1768781452456,0.21501499,92767.0,92730.0,0.07720969]
[1768781452660,0.09624195,92766.0,92740.0,0.10780741]
[1768781452955,0.09624195,92766.0,92736.0,0.010787]
[1768781453162,0.09624195,92766.0,92731.0,0.07720969]
[1768781453163,0.09624195,92766.0,92738.0,0.10780741]
[1768781453346,0.09624195,92766.0,92742.0,0.00016173]
[1768781454154,0.00016173,92772.0,92742.0,0.00016173]
[1768781454354,0.00016173,92772.0,92749.0,0.010785]
[1768781454553,0.00016173,92772.0,92753.0,0.09148592]
[1768781455365,0.00016173,92772.0,92759.0,0.010784]
[1768781455553,0.09624195,92791.0,92760.0,0.12441853]
[1768781455754,0.09624195,92791.0,92761.0,0.010784]
[1768781455956,0.09624195,92791.0,92755.0,0.09148592]
[1768781456156,0.09624195,92791.0,92758.0,0.010784]
[1768781456356,0.09624195,92791.0,92760.0,0.010784]
[1768781456658,0.09624195,92791.0,92755.0,0.09148592]
[1768781456659,0.00016173,92785.0,92766.0,0.00016173]
[1768781457148,0.00016173,92785.0,92767.0,0.10226892]
[1768781457348,0.09624195,92801.0,92770.0,0.010783]
[1768781457766,0.09624195,92801.0,92773.0,0.010782]
[1768781457966,0.09624195,92811.0,92781.0,0.010781]
[1768781458269,0.11877304,92806.0,92768.0,0.11451627]
[1768781458453,0.09624195,92771.0,92735.0,0.07720969]
[1768781458654,0.09624195,92759.0,92729.0,0.07720969]
[1768781458857,0.12441853,92750.0,92730.0,0.10776326]
[1768781459060,0.12441853,92750.0,92726.0,0.07720969]
[1768781459356,0.12441853,92750.0,92725.0,0.09148592]
[1768781459357,0.09624195,92759.0,92729.0,0.10776326]
[1768781459567,0.12441853,92750.0,92729.0,0.10776326]
[1768781459862,0.17441853,92750.0,92720.0,0.09148592]
[1768781460063,0.010786,92746.0,92730.0,0.00016174]
[1768781460269,0.010785,92749.0,92730.0,0.00016174]
[1768781460576,0.13520253,92760.0,92730.0,0.00016174]
[1768781460761,0.10702695,92749.0,92731.0,0.10783066]
[1768781460956,0.09624195,92740.0,92730.0,7.4e-07]
[1768781461157,0.09624195,92730.0,92714.0,0.07720969]
[1768781461357,0.09624195,92730.0,92690.0,0.010792]
[1768781461358,0.11877304,92717.0,92694.0,0.07985175]
[1768781461560,0.09624195,92700.0,92666.0,0.11460691]
[1768781461761,0.09624195,92711.0,92672.0,0.10227992]
[1768781462059,0.09624195,92699.0,92671.0,0.10784926]
[1768781462266,0.010791,92698.0,92662.0,0.09148592]
[1768781462559,0.010791,92696.0,92676.0,0.00016182]
[1768781462764,0.09634966,92697.0,92655.0,0.11460691]
[1768781462765,0.09624195,92690.0,92663.0,0.10789232]
[1768781462956,0.12441853,92680.0,92655.0,0.11460691]
[1768781463153,0.010793,92684.0,92651.0,0.09148592]
[1768781463462,0.00010771,92697.0,92648.0,0.07764]
[1768781463463,0.010791,92696.0,92661.0,0.09148592]
[1768781463671,0.09634966,92697.0,92662.0,0.23744157]
[1768781463853,0.00010771,92697.0,92680.0,0.12441853]
[1768781464052,0.010789,92715.0,92679.0,0.23744157]
[1768781464259,0.12441853,92710.0,92679.0,0.09148592]
[1768781464463,0.12441853,92710.0,92680.0,0.10791269]
[1768781464657,0.12441853,92700.0,92680.0,0.25386834]
[1768781464874,0.12441853,92690.0,92660.0,0.11460691]
[1768781465072,0.10703295,92698.0,92667.0,0.09148592]
[1768781465073,0.09624195,92698.0,92667.0,0.09148592]
[1768781465372,0.00016182,92699.0,92681.0,0.00016182]
[1768781466071,0.12441853,92691.0,92681.0,8.2e-07]
[1768781466364,0.12441853,92691.0,92655.0,0.010796]
[1768781466365,0.10703395,92689.0,92650.0,0.09148592]
[1768781466568,0.10788801,92690.0,92650.0,0.09148592]
[1768781466569,0.12441853,92680.0,92650.0,0.09148592]
[1768781466867,0.12441853,92680.0,92634.0,0.0001057]
[1768781466868,0.12441853,92660.0,92634.0,0.0001057]
[1768781467072,0.09624195,92672.0,92636.0,0.12540491]
[1768781467368,0.09624195,92672.0,92639.0,0.10789115]
[1768781467667,0.00016182,92663.0,92640.0,0.09148592]
[1768781467868,0.11877304,92692.0,92652.0,0.010796]
[1768781468166,0.12441853,92680.0,92648.0,0.0497137]
[1768781468373,0.010793,92682.0,92647.0,0.09148592]
[1768781468671,0.010792,92687.0,92649.0,0.09148592]
[1768781468862,0.010792,92689.0,92654.0,0.09148592]
[1768781469061,0.01095482,92677.0,92654.0,0.09148592]
[1768781469367,0.09624195,92676.0,92636.0,0.23516567]
[1768781469664,0.00016182,92677.0,92634.0,0.0109037]
[1768781469665,0.010794,92674.0,92639.0,0.11460691]
[1768781469873,0.00016182,92677.0,92640.0,0.23902544]
[1768781470061,0.00016182,92677.0,92645.0,0.010797]
[1768781470257,0.00016182,92677.0,92647.0,0.12540391]
[1768781470574,0.09640377,92677.0,92639.0,0.13507529]
[1768781470871,0.00016182,92677.0,92644.0,0.11460691]
[1768781471063,0.00016182,92677.0,92648.0,0.0497137]
[1768781471263,0.00016182,92677.0,92644.0,0.11460691]
[1768781471264,0.010794,92676.0,92650.0,0.0497137]
[1768781471574,0.00016182,92677.0,92660.0,0.21590445]
[1768781471767,0.00016182,92677.0,92660.0,0.09148592]
[1768781471962,0.00016182,92677.0,92665.0,0.0497137]
[1768781472164,0.10703595,92676.0,92645.0,0.13507529]
[1768781472365,0.010794,92669.0,92645.0,0.13502529]
[1768781472566,0.00016182,92677.0,92644.0,0.20609283]
[1768781472767,0.00016182,92677.0,92646.0,0.09148592]
[1768781472967,0.010794,92673.0,92646.0,0.09148592]
[1768781473163,0.00016182,92677.0,92634.0,0.0109037]
[1768781473164,0.00016182,92677.0,92652.0,0.010796]
[1768781473372,0.00016182,92677.0,92655.0,0.09148592]
[1768781473574,0.00016182,92677.0,92668.0,0.0497137]
[1768781473769,0.010792,92689.0,92674.0,0.0497137]
[1768781473964,0.010793,92679.0,92654.0,0.0497137]
[1768781474170,0.09624195,92683.0,92651.0,0.09148592]
[1768781474373,0.22666105,92690.0,92656.0,0.09148592]
[1768781474374,0.010792,92688.0,92656.0,0.09148592]
[1768781474573,0.23230654,92690.0,92658.0,0.10228192]
[1768781474780,0.23230654,92690.0,92662.0,0.09148592]
[1768781475081,0.00016182,92683.0,92668.0,0.09148592]
[1768781475264,0.10788801,92690.0,92671.0,0.0497137]
[1768781475467,0.10788801,92690.0,92673.0,0.0497137]
[1768781475673,0.10788801,92690.0,92665.0,0.00016182]
[1768781475674,0.010792,92689.0,92665.0,0.00016182]
[1768781475980,0.010792,92686.0,92665.0,0.00016182]
[1768781476272,0.09624195,92683.0,92665.0,0.00016182]
[1768781476472,0.00016182,92685.0,92668.0,0.0497137]
[1768781476679,0.00016182,92685.0,92665.0,0.00016182]
[1768781476868,0.00016182,92685.0,92665.0,0.04987552]
[1768781477369,0.00016182,92685.0,92674.0,0.0497137]
[1768781477575,0.11877304,92715.0,92674.0,0.0497137]
[1768781477576,0.010789,92712.0,92684.0,0.19937393]
[1768781477781,0.010789,92714.0,92684.0,0.09148592]
[1768781478075,0.12441853,92700.0,92685.0,0.10788801]
[1768781478279,0.12441853,92700.0,92674.0,0.09148592]
[1768781478474,0.11877304,92717.0,92682.0,0.010793]
[1768781478668,0.15420304,92718.0,92678.0,0.11460691]
[1768781478669,0.12441853,92710.0,92683.0,0.09148592]
[1768781478869,0.00016182,92709.0,92683.0,0.19936951]
[1768781479080,0.00016182,92709.0,92689.0,0.09148592]
[1768781479573,0.09624195,92740.0,92708.0,0.10788801]
[1768781479774,0.09624195,92740.0,92705.0,0.09148592]
[1768781479980,0.12441853,92740.0,92709.0,0.09148592]
[1768781480175,0.09624195,92750.0,92716.0,0.10227492]
[1768781480376,0.12441853,92760.0,92725.0,0.09148592]
[1768781480581,0.05,92760.0,92729.0,0.10227292]
[1768781480767,0.09624195,92772.0,92736.0,0.09148592]
[1768781480969,0.001,92740.0,92739.0,0.09148592]
[1768781481276,0.09624195,92784.0,92741.0,0.09148592]
[1768781481479,0.12441853,92770.0,92742.0,0.19937393]
[1768781481674,0.14624195,92784.0,92744.0,0.09148592]
[1768781481675,0.12441853,92780.0,92744.0,0.09148592]
[1768781481876,0.09388103,92783.0,92751.0,0.09148592]
[1768781482067,0.00016173,92771.0,92753.0,0.00016173]
[1768781482272,0.11877304,92798.0,92756.0,0.010784]
[1768781482473,0.12441853,92790.0,92758.0,0.11073866]
[1768781482777,0.12441853,92790.0,92758.0,0.09995466]
[1768781483090,0.11877304,92798.0,92760.0,0.010784]
[1768781483379,0.11012027,92812.0,92761.0,0.09995466]
[1768781483574,0.00010585,92788.0,92762.0,0.09995466]
[1768781483878,0.00010585,92788.0,92742.0,0.09995466]
[1768781483879,0.09767744,92786.0,92742.0,0.09995466]
[1768781484072,0.09767744,92786.0,92728.0,0.09995466]
[1768781484073,0.09767744,92771.0,92728.0,0.09995466]
[1768781484275,0.22209597,92770.0,92731.0,0.21585901]
[1768781484472,0.09767744,92779.0,92735.0,0.09995466]
[1768781484667,0.09767744,92778.0,92735.0,0.09995466]
[1768781484867,0.09767744,92769.0,92735.0,0.09995466]
[1768781485067,0.09175495,92831.0,92735.0,0.09995466]
[1768781485068,0.12441853,92770.0,92742.0,0.10095466]
[1768781485269,0.12441853,92760.0,92747.0,0.00016173]
[1768781485576,0.00016173,92766.0,92747.0,0.00016173]
[1768781487069,0.12441853,92760.0,92730.0,0.09995466]
[1768781487274,0.12441853,92760.0,92718.0,0.21834264]
[1768781487275,0.12441853,92750.0,92718.0,0.21834264]
[1768781487474,0.12441853,92740.0,92718.0,0.09995466]
[1768781487674,0.12441853,92750.0,92718.0,0.09995466]
[1768781487875,0.09767744,92749.0,92719.0,0.10783182]
[1768781488076,0.09767744,92739.0,92707.0,0.09995466]
[1768781488386,0.12441853,92730.0,92708.0,0.10783182]
[1768781488684,0.12441853,92730.0,92692.0,0.12917998]
[1768781488685,0.09767744,92739.0,92702.0,0.09995466]
[1768781488982,0.00016173,92743.0,92711.0,0.11074366]
[1768781489283,0.02890059,92742.0,92717.0,0.09995466]
[1768781489480,0.00016173,92743.0,92719.0,0.09995466]
[1768781489681,0.12441853,92760.0,92726.0,0.010788]
[1768781489877,0.0289057,92759.0,92726.0,0.09995466]
[1768781490079,0.09767744,92750.0,92719.0,0.07768]
[1768781490280,0.12441853,92740.0,92719.0,0.07768]
[1768781490481,0.12441853,92740.0,92718.0,0.00016173]
[1768781490780,0.09767744,92750.0,92718.0,0.00016173]
[1768781490987,0.09767744,92739.0,92718.0,0.00016173]
[1768781491181,0.12441853,92730.0,92703.0,0.09995466]
[1768781491382,0.12441853,92730.0,92701.0,0.00011718]
[1768781491789,0.12441853,92730.0,92681.0,0.17763466]
[1768781491790,0.09767744,92727.0,92681.0,0.17763466]
[1768781491980,0.12441853,92710.0,92681.0,0.09995466]
[1768781492178,0.09767744,92719.0,92686.0,0.10785566]
[1768781492481,0.00016173,92705.0,92686.0,0.00016173]
[1768781492683,8.045e-05,92704.0,92686.0,0.00016173]
[1768781493387,0.09767744,92699.0,92663.0,0.07768]
[1768781493585,0.09767744,92699.0,92664.0,0.010795]
[1768781493786,0.09767744,92699.0,92663.0,0.07768]
[1768781494080,0.09767744,92699.0,92663.0,0.17763466]
[1768781494285,0.09767744,92699.0,92664.0,0.10788068]
[1768781494482,0.010792,92694.0,92665.0,0.010795]
[1768781494681,0.010792,92694.0,92672.0,0.00016183]
[1768781494874,0.09767744,92699.0,92672.0,0.00016183]
[1768781495076,0.010791,92697.0,92672.0,0.00016183]
[1768781495281,8.045e-05,92704.0,92672.0,0.00016183]
[1768781495584,0.010791,92697.0,92672.0,0.00016183]
[1768781495884,0.12441853,92690.0,92672.0,0.00016183]
[1768781496085,0.00844128,92689.0,92672.0,0.00016183]
[1768781496386,0.12441853,92682.0,92653.0,0.1000467]
[1768781496688,0.010793,92680.0,92653.0,0.1000467]
[1768781496877,0.12441853,92680.0,92653.0,0.1000467]
[1768781497079,0.010794,92675.0,92653.0,9.204e-05]
[1768781497384,0.01089843,92681.0,92653.0,9.204e-05]
[1768781497684,0.010794,92668.0,92658.0,0.00016183]
[1768781497887,0.010795,92662.0,92653.0,9.204e-05]
[1768781498188,0.00843307,92666.0,92653.0,9.204e-05]
[1768781498386,0.12441853,92670.0,92653.0,9.204e-05]
[1768781498585,0.09649272,92669.0,92653.0,9.204e-05]
[1768781498791,0.13521353,92663.0,92634.0,0.07768]
[1768781499092,0.12441853,92650.0,92630.0,0.0908976]
[1768781499286,0.09649272,92652.0,92619.0,0.13279939]
[1768781499582,0.09649272,92652.0,92546.0,0.010809]
[1768781499583,0.09649272,92627.0,92586.0,0.0908976]
[1768781499783,0.22091125,92640.0,92601.0,0.0908976]
[1768781500085,0.010799,92628.0,92595.0,0.0908976]
[1768781500291,0.00016192,92630.0,92601.0,0.0908976]
[1768781500583,0.0108,92624.0,92601.0,0.0908976]
[1768781500789,0.010799,92629.0,92601.0,0.0908976]
[1768781500988,0.09649272,92629.0,92590.0,0.12441853]
[1768781501179,0.09649272,92629.0,92591.0,0.0908976]
[1768781501180,0.010799,92628.0,92591.0,0.0908976]
[1768781501382,0.010799,92629.0,92600.0,0.21531613]
[1768781501677,0.06165,92627.0,92601.0,0.0908976]
[1768781502079,0.06165,92627.0,92602.0,0.010802]
[1768781502275,0.06165,92627.0,92602.0,0.1016996]
[1768781502481,0.06165,92627.0,92611.0,0.0908976]
[1768781502677,0.06165,92627.0,92534.0,0.01081]
[1768781502678,0.0108,92620.0,92603.0,0.10798028]
[1768781502880,0.010801,92615.0,92594.0,0.0908976]
[1768781503084,0.15814272,92627.0,92490.0,0.1930895]
[1768781503085,0.00013146,92614.0,92583.0,0.11247277]
[1768781503283,0.00013146,92614.0,92581.0,0.0908976]
[1768781503483,0.00016192,92608.0,92583.0,0.19887205]
[1768781503690,0.00016192,92608.0,92584.0,0.0908976]
[1768781504191,0.09649272,92626.0,92593.0,0.0908976]
[1768781504584,0.0108,92625.0,92593.0,0.0908976]
[1768781504781,0.05959216,92627.0,92594.0,0.31451791]
[1768781504987,0.05959216,92627.0,92601.0,0.0908976]
[1768781505193,0.00016192,92620.0,92601.0,0.00016192]
[1768781505391,0.00016192,92620.0,92601.0,0.00010742]
[1768781505888,0.0965707,92626.0,92603.0,0.0908976]
[1768781505889,7.798e-05,92626.0,92603.0,0.0908976]
[1768781506095,7.798e-05,92626.0,92603.0,0.20653763]
[1768781506289,7.798e-05,92626.0,92602.0,0.10797911]
[1768781506290,0.0573077,92627.0,92602.0,0.0908976]
[1768781506489,0.0573077,92627.0,92604.0,0.19887671]
[1768781506693,0.0573077,92627.0,92605.0,0.0908976]
[1768781506883,0.00016192,92625.0,92605.0,0.0908976]
[1768781507084,0.00016192,92625.0,92605.0,0.20653763]
[1768781507393,0.010796,92658.0,92623.0,0.0908976]
[1768781507690,0.131684,92687.0,92634.0,0.0908976]
[1768781507691,0.11797368,92681.0,92634.0,0.0908976]
[1768781507892,0.02866691,92680.0,92634.0,0.0908976]
[1768781508098,0.07772,92687.0,92643.0,0.0908976]
[1768781508288,0.00016192,92674.0,92656.0,0.00016192]
[1768781508991,0.00016192,92674.0,92656.0,0.09105952]
[1768781509196,0.00016192,92674.0,92656.0,0.02187652]
[1768781509394,0.00016192,92674.0,92610.0,0.12479046]
[1768781509395,0.00016192,92674.0,92657.0,0.1079156]
[1768781509596,0.010793,92678.0,92657.0,0.1079156]
[1768781509794,0.010793,92682.0,92650.0,0.11564003]
[1768781509998,0.05233693,92689.0,92651.0,0.1079156]
[1768781510183,0.09649272,92688.0,92661.0,0.00016192]
[1768781510391,0.11797368,92673.0,92618.0,0.07772]
[1768781510601,0.09649272,92670.0,92618.0,0.07772]
[1768781510894,0.09649272,92669.0,92620.0,0.11564003]
[1768781511193,0.09649272,92668.0,92622.0,0.0908976]
[1768781511493,0.05919,92672.0,92636.0,0.0908976]
[1768781512197,0.05919,92672.0,92643.0,0.0908976]
[1768781512198,0.05683828,92672.0,92643.0,0.0908976]
[1768781512398,0.05683828,92672.0,92645.0,0.09944952]
[1768781512584,0.00016192,92667.0,92648.0,0.00016192]
[1768781512891,0.05683828,92672.0,92648.0,0.09961144]
[1768781513110,0.05683828,92672.0,92648.0,0.00016192]
[1768781513994,0.00016192,92669.0,92648.0,0.00016192]
[1768781514293,0.09646299,92669.0,92624.0,0.09944952]
[1768781514488,0.11094379,92669.0,92613.0,0.09944952]
[1768781514690,0.11094379,92669.0,92621.0,0.10792143]
[1768781514894,0.11094379,92669.0,92619.0,0.09944952]
[1768781515090,0.11094379,92669.0,92610.0,0.11429596]
[1768781515291,0.11094379,92667.0,92620.0,0.09944952]
[1768781515501,0.00016192,92649.0,92634.0,0.00016192]
[1768781515886,0.00016192,92649.0,92608.0,0.09944952]
[1768781516090,0.11110571,92649.0,92608.0,0.09944952]
[1768781516287,0.00016192,92649.0,92613.0,0.09944952]
[1768781516492,0.09646299,92649.0,92613.0,0.09944952]
[1768781516708,0.09630107,92648.0,92606.0,0.07772]
[1768781516995,0.09630107,92648.0,92618.0,0.00016192]
[1768781517196,0.00016192,92649.0,92623.0,0.09944952]
[1768781517797,0.00016192,92649.0,92624.0,0.10794939]
[1768781518194,0.00016192,92649.0,92625.0,0.010799]
[1768781518390,0.09630107,92666.0,92626.0,0.09944952]
[1768781518704,0.05683828,92672.0,92632.0,0.09944952]
[1768781518899,0.05683828,92672.0,92635.0,0.11024752]
[1768781519096,0.05683828,92672.0,92637.0,0.22454348]
[1768781519296,0.05683828,92672.0,92641.0,0.21374548]
[1768781519497,0.05683828,92672.0,92648.0,0.09944952]
[1768781520001,0.05683828,92672.0,92647.0,0.00016192]
[1768781520201,0.09630107,92671.0,92647.0,0.00016192]
[1768781520497,0.05683828,92672.0,92636.0,0.07772]
[1768781520498,0.02857888,92670.0,92636.0,0.07772]
[1768781520694,0.05683828,92672.0,92636.0,0.07772]
[1768781520695,0.02857888,92669.0,92636.0,0.07772]
[1768781520896,0.02858218,92668.0,92637.0,0.09944952]
[1768781521098,0.05683828,92672.0,92638.0,0.09944952]
[1768781521301,0.02861596,92671.0,92638.0,0.09944952]
[1768781521492,0.11094379,92663.0,92611.0,0.07772]
[1768781521693,0.11094379,92661.0,92611.0,0.07772]
[1768781521905,0.11094379,92659.0,92612.0,0.10792783]
[1768781522202,0.11094379,92657.0,92611.0,0.07772]
[1768781522404,0.09630107,92644.0,92611.0,0.07772]
[1768781522598,0.09630107,92644.0,92593.0,0.010803]
[1768781522599,0.09630107,92635.0,92593.0,0.010803]
[1768781522797,0.09630107,92631.0,92589.0,0.088524]
[1768781522993,0.02860979,92630.0,92595.0,0.11025252]
[1768781523199,0.00016192,92637.0,92600.0,0.11025152]
[1768781523400,0.02864426,92636.0,92600.0,0.09944952]
[1768781523609,0.09630107,92634.0,92600.0,0.09944952]
[1768781523806,0.09630107,92632.0,92609.0,0.00010982]
[1768781524005,0.09630107,92630.0,92609.0,8.2e-07]
[1768781524203,0.02864426,92629.0,92609.0,8.2e-07]
[1768781524398,0.010799,92631.0,92609.0,8.2e-07]
[1768781524801,0.010798,92635.0,92609.0,8.2e-07]
[1768781525112,0.09630107,92611.0,92569.0,0.11429596]
[1768781525508,0.09630107,92622.0,92586.0,0.010804]
[1768781525709,0.02863452,92621.0,92582.0,0.11429596]
[1768781525914,0.010801,92613.0,92587.0,0.10799719]
[1768781526211,0.00016192,92609.0,92569.0,0.11429596]
[1768781526512,0.00016192,92609.0,92586.0,0.010804]
[1768781526708,0.09630107,92630.0,92592.0,0.010803]
[1768781526909,0.02864292,92629.0,92601.0,0.010802]
[1768781527113,0.02864292,92628.0,92602.0,0.09944952]
[1768781527314,0.09630107,92641.0,92604.0,0.09944952]
[1768781527613,0.010798,92635.0,92605.0,0.010802]
[1768781527912,0.010799,92629.0,92605.0,0.09944952]
[1768781528211,0.1249527,92628.0,92611.0,9.2e-07]
[1768781528418,0.010801,92610.0,92581.0,0.010805]
[1768781528615,0.010801,92610.0,92579.0,0.09955469]
[1768781528616,0.00016192,92629.0,92591.0,0.21374548]
[1768781528808,0.11094379,92627.0,92593.0,0.10796512]
[1768781529110,0.02865161,92626.0,92598.0,0.11025252]
[1768781529317,0.02865161,92625.0,92601.0,0.09944952]
[1768781529513,0.11094379,92647.0,92601.0,0.09944952]
[1768781529814,0.00016192,92622.0,92591.0,0.09944952]
[1768781530121,0.02864572,92621.0,92592.0,0.09944952]
[1768781530413,0.00016192,92622.0,92594.0,0.09944952]
[1768781530615,0.02864148,92621.0,92590.0,0.07776]
[1768781530812,0.09646299,92622.0,92593.0,0.1079762]
[1768781531118,0.12494192,92621.0,92590.0,0.07776]
[1768781531410,0.010801,92610.0,92590.0,0.17720952]
[1768781531611,0.010802,92606.0,92590.0,0.07776]
[1768781531813,0.09630107,92621.0,92590.0,0.07776]
[1768781531814,0.010802,92603.0,92590.0,0.07776]
[1768781532013,0.010801,92611.0,92590.0,0.07776]
[1768781532214,0.09630107,92619.0,92590.0,0.07776]
[1768781532215,0.0108,92618.0,92592.0,0.09944952]
[1768781532512,0.00016192,92622.0,92593.0,0.09944952]
[1768781532713,0.02862789,92621.0,92603.0,0.11025152]
[1768781532913,0.010799,92630.0,92603.0,0.09944952]
[1768781533117,0.09630107,92648.0,92607.0,0.09944952]
[1768781533415,0.010799,92630.0,92609.0,0.09944952]
[1768781533719,0.02862779,92629.0,92609.0,0.09944952]
[1768781533918,0.0108,92623.0,92594.0,0.010803]
[1768781534119,0.010799,92627.0,92610.0,0.00016192]
[1768781534317,0.0108,92625.0,92610.0,0.00016192]
[1768781534510,0.11094379,92640.0,92610.0,0.00016192]
[1768781534511,0.010797,92648.0,92610.0,0.00016192]
[1768781534820,0.010796,92652.0,92623.0,0.0108]
[1768781535119,0.17004056,92663.0,92613.0,0.010801]
[1768781535309,0.05,92663.0,92639.0,0.010798]
[1768781535641,0.05,92663.0,92622.0,0.0108]
[1768781535809,0.07373949,92669.0,92643.0,0.09944952]
[1768781536010,0.06,92669.0,92643.0,0.09944952]
[1768781536317,0.07373949,92673.0,92647.0,0.010797]
[1768781536515,0.07373949,92674.0,92645.0,0.09944952]
[1768781536816,0.09630107,92697.0,92657.0,0.09944952]
[1768781537012,0.09630107,92697.0,92663.0,0.11429596]
[1768781537211,0.07776,92711.0,92663.0,0.11429596]
[1768781537212,0.12845693,92707.0,92663.0,0.11429596]
[1768781537413,0.12845693,92707.0,92678.0,0.010793]
[1768781537608,0.09630107,92731.0,92674.0,0.07776]
[1768781537816,0.05,92731.0,92679.0,0.11286117]
[1768781538022,0.05,92731.0,92681.0,0.010793]
[1768781538321,0.05,92731.0,92693.0,0.00016183]
[1768781538618,0.09630107,92742.0,92694.0,0.12266186]
[1768781538818,0.06,92742.0,92706.0,0.01079]
[1768781539019,0.09630107,92741.0,92703.0,0.07776]
[1768781539215,0.20724486,92734.0,92695.0,0.1078609]
[1768781539516,0.09630107,92718.0,92678.0,0.11024252]
[1768781539718,0.09630107,92717.0,92674.0,0.001]
[1768781540020,0.09630107,92716.0,92679.0,0.10785799]
[1768781540214,0.09630107,92715.0,92675.0,0.1122767]
[1768781540417,0.09630107,92715.0,92676.0,0.10785799]
[1768781540418,0.09630107,92708.0,92676.0,0.10785799]
[1768781540720,0.09630107,92708.0,92669.0,0.07776]
[1768781540721,0.0964629,92704.0,92669.0,0.07776]
[1768781541020,0.0964629,92704.0,92675.0,0.10788417]
[1768781541207,0.0964629,92704.0,92669.0,0.19205596]
[1768781541409,0.1464629,92704.0,92670.0,0.10788417]
[1768781541621,0.1464629,92704.0,92671.0,0.010794]
[1768781541812,0.1464629,92704.0,92678.0,0.00016183]
[1768781542014,0.09630107,92703.0,92678.0,0.00016183]
[1768781542215,0.14630107,92703.0,92679.0,0.10788999]
[1768781542719,0.09101386,92728.0,92694.0,0.010791]
[1768781542924,0.14101386,92728.0,92698.0,0.010791]
[1768781543137,0.09,92738.0,92706.0,0.09496569]
[1768781543419,0.09101386,92748.0,92718.0,0.010789]
[1768781543621,0.00016183,92739.0,92720.0,0.00016183]
[1768781544210,0.10956785,92765.0,92720.0,0.00016183]
[1768781544412,0.09101386,92760.0,92728.0,0.010787]
[1768781544617,0.07,92770.0,92732.0,0.10630107]
[1768781544819,0.27452376,92772.0,92732.0,0.10630107]
[1768781545026,0.27452376,92772.0,92733.0,0.10782368]
[1768781545225,0.09101386,92772.0,92743.0,0.00016173]
[1768781545425,0.09101386,92772.0,92743.0,2.336e-05]
[1768781545724,0.12870247,92769.0,92743.0,2.336e-05]
[1768781545925,0.09193048,92760.0,92744.0,0.10780799]
[1768781546129,0.09193048,92760.0,92743.0,2.336e-05]
[1768781546331,0.09193048,92760.0,92743.0,0.09466221]
[1768781546525,0.12870247,92772.0,92744.0,0.10780799]
[1768781546828,0.09101386,92771.0,92744.0,0.10780799]
[1768781547034,0.09101386,92768.0,92744.0,0.10780799]
[1768781547529,0.09117559,92765.0,92723.0,0.010788]
[1768781547824,0.10956785,92760.0,92732.0,0.10780973]
[1768781548032,0.10956785,92760.0,92729.0,0.12216771]
[1768781548033,0.09101386,92752.0,92729.0,0.12216771]
[1768781548221,0.09101386,92752.0,92713.0,0.12216771]
[1768781548222,0.09101386,92744.0,92713.0,0.12216771]
[1768781548421,0.09101386,92743.0,92712.0,0.07784099]
[1768781548625,0.09101386,92743.0,92713.0,0.10780973]
[1768781548626,0.09101386,92742.0,92713.0,0.10780973]
[1768781548921,0.68036638,92735.0,92718.0,0.00016173]
[1768781549122,0.73036638,92735.0,92718.0,0.00016173]
[1768781549415,0.58935252,92729.0,92718.0,0.00016173]
[1768781549822,0.58935252,92726.0,92718.0,0.00016173]
[1768781550025,0.00016173,92737.0,92718.0,0.00016173]
[1768781550026,0.58935252,92730.0,92718.0,0.00016173]
[1768781550425,0.09101386,92729.0,92712.0,0.00012099]
[1768781550639,0.68036638,92725.0,92692.0,0.07768]
[1768781550922,0.12870247,92766.0,92711.0,0.010789]
[1768781550923,0.09101386,92746.0,92711.0,0.010789]
[1768781551118,0.09101386,92758.0,92716.0,0.08954778]
[1768781551318,0.10956785,92769.0,92716.0,0.08954778]
[1768781551319,0.09101386,92750.0,92716.0,0.08954778]
[1768781551518,0.09114905,92749.0,92724.0,0.00016173]
[1768781551722,0.00016173,92742.0,92724.0,0.00016173]